bitfinex-derivatives/quotes_BTCF0:USTF0_20240903
["timestamp","ask_amount","ask_price","bid_price","bid_amount"]
[1725374665638,0.326272,57965.0,57956.0,0.0004]
[1725374665829,0.00025891,57962.0,57961.0,0.086276]
[1725374666030,0.00025891,57962.0,57961.0,0.326276]
[1725374666830,0.00025891,57962.0,57961.0,0.687076]
[1725374667030,0.00025891,57962.0,57961.0,0.326276]
[1725374667224,0.00025891,57962.0,57961.0,0.086276]
[1725374667635,0.24025891,57962.0,57957.0,0.086282]
[1725374667836,0.24025891,57962.0,57959.0,0.086279]
[1725374667837,0.36653491,57962.0,57959.0,0.086279]
[1725374668131,0.086277,57961.0,57959.0,0.086279]
[1725374668332,0.3608,57960.0,57956.0,0.87152]
[1725374668532,0.24,57957.0,57956.0,0.8704]
[1725374668724,0.36,57957.0,57956.0,0.8704]
[1725374668923,0.446283,57957.0,57956.0,0.8704]
[1725374669128,0.172572,57955.0,57954.0,0.02668292]
[1725374669326,0.172572,57955.0,57951.0,0.00025891]
[1725374669327,0.086291,57952.0,57951.0,0.00025891]
[1725374669530,0.326291,57952.0,57951.0,0.00025891]
[1725374669727,0.336291,57952.0,57951.0,0.00025891]
[1725374670039,0.422582,57952.0,57951.0,0.00025891]
[1725374670637,0.652582,57952.0,57951.0,0.00025891]
[1725374670940,1.531062,57952.0,57951.0,0.00025891]
[1725374671242,0.086311,57940.0,57939.0,0.086309]
[1725374671427,0.086311,57940.0,57933.0,0.8728]
[1725374671428,0.086312,57938.0,57933.0,0.0024]
[1725374671629,0.3,57940.0,57933.0,0.0024]
[1725374671630,0.086313,57937.0,57936.0,0.086314]
[1725374671837,0.086313,57937.0,57933.0,0.02927283]
[1725374671838,0.086315,57936.0,57933.0,0.02927283]
[1725374672035,0.472636,57934.0,57933.0,0.0024]
[1725374672235,0.822636,57934.0,57933.0,0.0024]
[1725374672631,0.072325,57929.0,57928.0,0.00025891]
[1725374672946,0.842125,57929.0,57928.0,0.00025891]
[1725374673625,0.842125,57929.0,57918.0,0.004]
[1725374673626,0.7808,57929.0,57918.0,0.004]
[1725374673829,0.086336,57922.0,57918.0,0.11335336]
[1725374674028,0.086336,57922.0,57918.0,0.08634]
[1725374674640,0.086336,57922.0,57915.0,0.00880307]
[1725374674936,0.086336,57922.0,57914.0,0.3609734]
[1725374674937,0.084336,57922.0,57918.0,0.086341]
[1725374675435,0.084336,57922.0,57914.0,0.0001734]
[1725374675436,0.086333,57924.0,57920.0,0.086338]
[1725374675635,0.001,57922.0,57920.0,0.086338]
[1725374675834,0.002,57922.0,57920.0,0.086338]
[1725374676141,0.002,57922.0,57918.0,0.01]
[1725374676636,0.086335,57923.0,57920.0,0.014]
[1725374677336,0.302,57924.0,57920.0,0.014]
[1725374677337,0.447137,57921.0,57920.0,0.014]
[1725374678232,0.086337,57921.0,57920.0,0.03450045]
[1725374678432,0.086337,57921.0,57918.0,0.019]
[1725374678635,0.002,57922.0,57918.0,0.019]
[1725374678937,0.002,57922.0,57921.0,0.086337]
[1725374679137,0.001,57922.0,57921.0,0.086337]
[1725374679431,0.001,57922.0,57921.0,0.447137]
[1725374679645,0.256134,57923.0,57921.0,0.086337]
[1725374679835,0.616934,57923.0,57921.0,0.086337]
[1725374680144,0.616934,57923.0,57920.0,0.008]
[1725374680145,0.001,57922.0,57920.0,0.008]
[1725374680438,0.001,57922.0,57920.0,0.03525666]
[1725374680630,0.001,57922.0,57921.0,0.086337]
[1725374681349,0.002,57922.0,57921.0,0.086337]
[1725374682239,0.071,57922.0,57921.0,0.006]
[1725374682544,0.407335,57922.0,57921.0,0.006]
[1725374683056,0.321,57922.0,57921.0,0.006]
[1725374683238,0.407335,57922.0,57921.0,0.006]
[1725374686841,0.407335,57922.0,57921.0,0.092337]
[1725374690441,0.407335,57922.0,57921.0,0.006]
[1725374690442,0.49367,57922.0,57921.0,0.006]
[1725374690843,0.580005,57922.0,57921.0,0.006]
[1725374691350,1.697965,57922.0,57921.0,0.006]
[1725374692047,1.097965,57922.0,57921.0,0.006]
[1725374692348,1.697965,57922.0,57921.0,0.006]
[1725374692548,0.407335,57922.0,57921.0,0.006]
[1725374692761,0.407335,57922.0,57921.0,0.092337]
[1725374693448,0.49367,57922.0,57921.0,0.006]
[1725374694157,0.73367,57922.0,57921.0,0.006]
[1725374695458,0.647335,57922.0,57921.0,0.006]
[1725374695759,0.407335,57922.0,57921.0,0.092337]
[1725374696051,0.311,57922.0,57921.0,0.092337]
[1725374696843,0.311,57922.0,57921.0,0.178674]
[1725374697253,0.311,57922.0,57921.0,0.092337]
[1725374697442,0.311,57922.0,57921.0,0.14402727]
[1725374697647,0.311,57922.0,57921.0,0.092337]
[1725374697850,0.397335,57922.0,57921.0,0.006]
[1725374698455,0.48367,57922.0,57921.0,0.006]
[1725374700351,0.570005,57922.0,57921.0,0.006]
[1725374701358,0.48367,57922.0,57921.0,0.006]
[1725374701952,0.397335,57922.0,57921.0,0.092337]
[1725374702352,0.311,57922.0,57921.0,0.14402727]
[1725374702552,0.397335,57922.0,57921.0,0.14410404]
[1725374703160,0.311,57922.0,57921.0,0.14410404]
[1725374703556,0.397335,57922.0,57921.0,0.092337]
[1725374704260,0.397335,57922.0,57921.0,0.14410404]
[1725374704661,0.397335,57922.0,57921.0,0.092337]
[1725374704862,0.337335,57922.0,57921.0,0.092337]
[1725374705061,0.251,57922.0,57921.0,0.14410403]
[1725374705455,0.251,57922.0,57921.0,0.092337]
[1725374705659,0.251,57922.0,57921.0,0.14410403]
[1725374705859,0.251,57922.0,57921.0,0.16120618]
[1725374706761,0.001,57922.0,57921.0,1.536634]
[1725374707067,0.001,57922.0,57921.0,2.837371]
[1725374707362,0.001,57922.0,57921.0,3.05507865]
[1725374707868,0.001,57922.0,57921.0,2.96893146]
[1725374708162,0.001,57922.0,57921.0,2.92361357]
[1725374708370,0.001,57922.0,57921.0,1.31861657]
[1725374708570,0.001,57922.0,57921.0,1.232374]
[1725374709170,0.001,57922.0,57921.0,2.676671]
[1725374709568,0.090911,57939.0,57935.0,0.172632]
[1725374709569,0.0046,57939.0,57935.0,0.172632]
[1725374709769,0.3654,57953.0,57935.0,0.9608]
[1725374709770,0.24,57945.0,57935.0,0.9608]
[1725374710074,0.26,57945.0,57938.0,0.05172044]
[1725374710261,0.02,57945.0,57941.0,0.3608]
[1725374710465,0.24,57942.0,57941.0,0.3608]
[1725374710659,0.24,57942.0,57937.0,0.05172044]
[1725374710660,0.086309,57940.0,57937.0,0.05172044]
[1725374710966,0.086313,57937.0,57936.0,0.00025891]
[1725374711163,0.552626,57937.0,57936.0,0.00025891]
[1725374711360,0.905926,57937.0,57936.0,0.00025891]
[1725374711573,0.819613,57937.0,57936.0,0.00025891]
[1725374711775,0.5309,57937.0,57936.0,0.08657391]
[1725374711967,0.336309,57940.0,57937.0,0.001]
[1725374712275,0.336309,57940.0,57939.0,0.08631]
[1725374712276,0.01,57940.0,57939.0,0.08631]
[1725374712966,0.01,57940.0,57939.0,1.44411]
[1725374713169,0.24,57952.0,57946.0,0.0863]
[1725374713474,0.24,57952.0,57946.0,0.3263]
[1725374713475,0.326291,57952.0,57946.0,0.3263]
[1725374713859,0.24,57952.0,57946.0,0.3263]
[1725374714059,0.1709,57954.0,57946.0,0.84402]
[1725374714266,0.24,57949.0,57946.0,0.0863]
[1725374714665,0.08655691,57947.0,57939.0,0.89898716]
[1725374714866,0.08655691,57947.0,57943.0,0.086304]
[1725374714867,0.24,57944.0,57943.0,0.086304]
[1725374715066,0.013,57940.0,57939.0,0.87252]
[1725374715271,0.013,57940.0,57939.0,0.98487586]
[1725374716078,0.00125891,57947.0,57946.0,0.0863]
[1725374716676,0.00025891,57947.0,57946.0,0.0863]
[1725374717275,0.00025891,57947.0,57939.0,0.90056586]
[1725374717479,0.00025891,57947.0,57940.0,0.086309]
[1725374717480,0.086304,57943.0,57940.0,0.086309]
[1725374717685,0.05,57943.0,57939.0,0.90056586]
[1725374718082,0.05,57943.0,57939.0,0.89956586]
[1725374718276,0.05,57943.0,57942.0,0.086306]
[1725374718775,0.05,57943.0,57939.0,0.90068586]
[1725374718776,0.086307,57942.0,57939.0,0.89868586]
[1725374718984,0.533418,57940.0,57939.0,0.02816586]
[1725374719275,1.173418,57940.0,57939.0,0.001]
[1725374719683,1.691218,57940.0,57939.0,0.001]
[1725374720077,2.077527,57940.0,57939.0,0.001]
[1725374720386,1.691218,57940.0,57939.0,0.001]
[1725374720681,1.874118,57940.0,57939.0,0.001]
[1725374721069,1.874118,57940.0,57936.0,0.00025891]
[1725374721070,0.172626,57937.0,57936.0,0.00025891]
[1725374721271,0.542626,57937.0,57936.0,0.00025891]
[1725374721882,0.541626,57937.0,57936.0,0.00025891]
[1725374722072,0.540626,57937.0,57936.0,0.00025891]
[1725374722472,0.549626,57937.0,57936.0,0.00125891]
[1725374722785,1.753739,57937.0,57936.0,0.00125891]
[1725374722986,2.114539,57937.0,57936.0,0.00125891]
[1725374723282,2.114539,57937.0,57922.0,0.8704]
[1725374723283,0.472662,57925.0,57922.0,0.8704]
[1725374723470,0.472662,57925.0,57922.0,0.87152]
[1725374723471,0.086334,57923.0,57922.0,0.87152]
[1725374723675,0.06,57923.0,57920.0,0.086338]
[1725374723874,0.06,57923.0,57916.0,0.086344]
[1725374723875,0.3,57921.0,57916.0,0.086344]
[1725374724075,0.299,57917.0,57916.0,0.086344]
[1725374724489,0.3608,57920.0,57919.0,0.08634]
[1725374724490,0.3,57920.0,57919.0,0.08634]
[1725374724784,0.386338,57920.0,57919.0,0.08634]
[1725374725087,0.379338,57920.0,57919.0,0.08634]
[1725374725471,0.499338,57920.0,57919.0,0.08634]
[1725374725684,0.499338,57920.0,57919.0,0.09434]
[1725374725888,0.494338,57920.0,57919.0,0.09434]
[1725374726472,0.495338,57920.0,57919.0,0.10334]
[1725374727077,0.495338,57920.0,57919.0,0.017]
[1725374727078,0.856138,57920.0,57919.0,0.017]
[1725374727387,0.942476,57920.0,57919.0,0.017]
[1725374727589,1.182476,57920.0,57919.0,0.017]
[1725374728090,1.182476,57920.0,57919.0,0.01]
[1725374728290,1.182476,57920.0,57913.0,0.0001734]
[1725374728291,0.172694,57914.0,57913.0,0.0001734]
[1725374728584,0.172694,57914.0,57904.0,0.08636]
[1725374728585,0.086361,57905.0,57904.0,0.08636]
[1725374729187,0.084361,57905.0,57904.0,0.08636]
[1725374729487,0.078357,57908.0,57907.0,0.086358]
[1725374729788,0.7208,57908.0,57897.0,1.22239944]
[1725374729986,0.7208,57908.0,57897.0,0.02705944]
[1725374729987,0.172742,57898.0,57897.0,0.02705944]
[1725374730187,0.172742,57898.0,57890.0,0.086383]
[1725374730188,0.086382,57891.0,57890.0,0.086383]
[1725374730382,0.3,57892.0,57891.0,0.086382]
[1725374730983,0.38638,57892.0,57891.0,0.086382]
[1725374731186,0.37738,57892.0,57891.0,0.086382]
[1725374731381,0.37738,57892.0,57889.0,0.0268015]
[1725374731382,0.411,57892.0,57889.0,0.0268015]
[1725374731591,0.411,57892.0,57888.0,0.87152]
[1725374731592,0.086385,57889.0,57888.0,0.00112]
[1725374731790,0.086394,57883.0,57878.0,0.090401]
[1725374731995,0.086394,57883.0,57875.0,1.2018]
[1725374731996,0.0008,57879.0,57875.0,1.20292]
[1725374732182,0.0008,57879.0,57878.0,0.086401]
[1725374732491,0.0008,57879.0,57875.0,0.02798918]
[1725374732492,0.086404,57876.0,57875.0,0.02798918]
[1725374732690,0.3,57876.0,57868.0,0.086415]
[1725374732889,0.3,57869.0,57868.0,0.086415]
[1725374733192,0.3,57869.0,57868.0,0.087215]
[1725374733693,0.5404,57875.0,57871.0,0.086411]
[1725374733909,0.5404,57875.0,57869.0,0.3]
[1725374733910,0.1796,57875.0,57869.0,0.3]
[1725374734082,0.003,57879.0,57874.0,0.3]
[1725374734394,0.003,57879.0,57878.0,0.086401]
[1725374734587,0.006,57879.0,57878.0,0.447201]
[1725374735190,0.003,57879.0,57878.0,0.086401]
[1725374735393,0.00025914,57883.0,57882.0,0.067395]
[1725374735989,0.00025914,57883.0,57877.0,0.086402]
[1725374736192,0.00025914,57883.0,57873.0,0.6608]
[1725374736193,0.3,57880.0,57873.0,0.3608]
[1725374736391,0.3,57880.0,57868.0,0.0008]
[1725374736392,0.6608,57874.0,57871.0,0.02744077]
[1725374736596,0.086415,57869.0,57868.0,0.0008]
[1725374737095,0.447215,57869.0,57868.0,0.0008]
[1725374737987,0.467215,57869.0,57868.0,0.0008]
[1725374738388,0.477215,57869.0,57868.0,0.0008]
[1725374738600,0.447215,57869.0,57867.0,0.01140116]
[1725374738894,0.447215,57869.0,57865.0,0.08642]
[1725374739099,0.447215,57869.0,57860.0,0.3608]
[1725374739100,0.3,57866.0,57860.0,0.447226]
[1725374739400,0.3,57866.0,57857.0,0.086431]
[1725374739401,0.3008,57861.0,57857.0,0.086431]
[1725374739598,0.3,57858.0,57857.0,0.086431]
[1725374739785,0.6608,57858.0,57857.0,0.086431]
[1725374740098,0.3008,57858.0,57857.0,0.086431]
[1725374740292,0.3008,57858.0,57852.0,0.02692371]
[1725374740293,0.3,57858.0,57854.0,0.086436]
[1725374740499,0.3008,57855.0,57854.0,0.086437]
[1725374740695,0.3,57858.0,57852.0,0.02692371]
[1725374740992,0.0008,57861.0,57860.0,0.086428]
[1725374741185,0.0008,57861.0,57860.0,0.447228]
[1725374741390,0.0008,57861.0,57860.0,0.086428]
[1725374743089,0.0008,57861.0,57856.0,0.086434]
[1725374743090,0.1108,57861.0,57856.0,0.086434]
[1725374743285,0.3008,57857.0,57856.0,0.086434]
[1725374743487,0.3008,57857.0,57856.0,0.11314575]
[1725374743902,0.0008,57857.0,57856.0,0.1216438]
[1725374744102,0.0008,57857.0,57856.0,0.4824438]
[1725374744296,0.0008,57857.0,57856.0,0.1216438]
[1725374745596,0.0008,57857.0,57856.0,0.4824438]
[1725374745801,0.0008,57857.0,57856.0,1.2401638]
[1725374746000,0.448032,57857.0,57856.0,0.02671175]
[1725374746198,0.558032,57857.0,57854.0,0.086436]
[1725374746394,0.3008,57855.0,57854.0,0.086436]
[1725374746594,0.4108,57855.0,57854.0,0.086436]
[1725374746794,0.497235,57855.0,57854.0,0.086436]
[1725374746992,0.4108,57855.0,57852.0,0.02680274]
[1725374747299,0.4108,57855.0,57842.0,0.004]
[1725374747300,0.0008,57855.0,57854.0,0.086437]
[1725374747696,0.3,57856.0,57855.0,0.086435]
[1725374748003,0.38,57856.0,57855.0,0.086435]
[1725374749598,0.3,57856.0,57855.0,0.11314262]
[1725374750402,0.386434,57856.0,57855.0,0.11314262]
[1725374750604,0.3,57856.0,57855.0,0.11314262]
[1725374750801,0.37,57856.0,57855.0,0.11314262]
[1725374751000,0.30945636,57856.0,57855.0,0.11314262]
[1725374751402,0.97669036,57856.0,57855.0,0.11314262]
[1725374751907,0.61589036,57856.0,57855.0,0.11314262]
[1725374752203,0.50589036,57856.0,57848.0,0.87895769]
[1725374752399,0.3008,57849.0,57848.0,0.96540369]
[1725374752790,0.3008,57849.0,57848.0,0.9922403]
[1725374753404,0.3008,57849.0,57848.0,1.3530403]
[1725374753405,0.24890129,57849.0,57848.0,1.3530403]
[1725374754193,0.3,57852.0,57851.0,0.086441]
[1725374754599,0.3,57856.0,57855.0,0.086435]
[1725374754797,0.58,57856.0,57855.0,0.086435]
[1725374754997,0.086439,57853.0,57852.0,0.086439]
[1725374755195,0.3008,57853.0,57852.0,0.08644]
[1725374755407,0.4508,57853.0,57852.0,0.13816044]
[1725374755805,0.8116,57853.0,57852.0,0.13816044]
[1725374756008,0.8116,57853.0,57852.0,0.08644]
[1725374756199,0.5208,57853.0,57852.0,0.08644]
[1725374756400,0.5208,57853.0,57852.0,0.13816044]
[1725374756602,0.5208,57853.0,57852.0,0.08644]
[1725374756802,0.5208,57853.0,57852.0,0.13786638]
[1725374757203,0.607238,57853.0,57852.0,0.08644]
[1725374757408,0.785438,57853.0,57852.0,0.08644]
[1725374757713,0.08644,57852.0,57851.0,0.05142638]
[1725374758003,0.08644,57852.0,57848.0,0.0966041]
[1725374758004,0.086441,57851.0,57850.0,0.13792932]
[1725374758210,0.207241,57851.0,57850.0,0.086443]
[1725374758805,0.207241,57851.0,57850.0,0.15541049]
[1725374759501,0.207241,57851.0,57850.0,0.086443]
[1725374760507,0.1208,57851.0,57850.0,0.086443]
[1725374760907,0.1208,57851.0,57850.0,0.30462124]
[1725374761404,0.1208,57851.0,57850.0,0.85178505]
[1725374761610,0.1208,57851.0,57850.0,0.98351606]
[1725374762501,0.1208,57851.0,57850.0,1.34431606]
[1725374762705,0.1208,57851.0,57850.0,1.70511606]
[1725374763103,0.1208,57851.0,57850.0,0.73931306]
[1725374763610,0.1208,57851.0,57850.0,0.57897401]
[1725374763814,0.1208,57851.0,57850.0,0.21817401]
[1725374764408,0.1208,57851.0,57850.0,0.32158955]
[1725374764607,0.207241,57851.0,57850.0,0.32158955]
[1725374764811,0.1208,57851.0,57850.0,0.32158955]
[1725374765202,0.207241,57851.0,57850.0,0.21818927]
[1725374765397,0.207241,57851.0,57850.0,0.32158955]
[1725374765607,0.207241,57851.0,57850.0,0.13174627]
[1725374765608,0.550123,57851.0,57850.0,0.13174627]
[1725374765813,0.259338,57848.0,57847.0,0.01514823]
[1725374766005,0.259338,57848.0,57837.0,0.12471696]
[1725374766006,0.086449,57846.0,57845.0,0.08631143]
[1725374766309,0.42,57846.0,57844.0,0.08625994]
[1725374766508,0.50645,57846.0,57845.0,0.21802761]
[1725374766712,0.42,57846.0,57845.0,0.30447729]
[1725374766915,0.42,57846.0,57845.0,0.21821861]
[1725374767306,0.42,57846.0,57845.0,0.37858562]
[1725374767505,0.867249,57846.0,57845.0,0.13176861]
[1725374767704,0.907249,57846.0,57845.0,0.13176861]
[1725374767906,0.993698,57846.0,57845.0,0.21802605]
[1725374768106,0.1729,57845.0,57844.0,0.03154185]
[1725374768306,0.60935,57845.0,57844.0,0.03154185]
[1725374768507,0.5229,57845.0,57844.0,0.03154185]
[1725374768709,0.086463,57842.0,57841.0,0.08625744]
[1725374768909,0.086463,57842.0,57841.0,0.1317725]
[1725374768910,0.842926,57842.0,57841.0,0.1317725]
[1725374769113,0.756463,57842.0,57841.0,0.1317725]
[1725374769308,0.086465,57841.0,57840.0,0.11691692]
[1725374769506,0.787465,57841.0,57840.0,0.16249079]
[1725374769914,0.701,57841.0,57840.0,0.24895679]
[1725374770114,0.471,57841.0,57840.0,0.24895679]
[1725374771428,0.611,57841.0,57840.0,0.16249079]
[1725374771622,0.697465,57841.0,57840.0,0.16249079]
[1725374771814,0.697465,57841.0,57840.0,0.24865826]
[1725374772009,1.058265,57841.0,57840.0,0.03071655]
[1725374772207,0.9718,57841.0,57833.0,0.086476]
[1725374772413,0.9718,57841.0,57838.0,0.08615082]
[1725374772624,0.086468,57839.0,57838.0,0.08615082]
[1725374772820,0.11,57839.0,57838.0,0.21824988]
[1725374773118,0.36105914,57843.0,57838.0,0.13178088]
[1725374773425,0.36105914,57843.0,57838.0,0.086469]
[1725374773426,0.086466,57841.0,57838.0,0.086469]
[1725374773616,0.206466,57841.0,57839.0,0.08615776]
[1725374773920,0.206466,57841.0,57838.0,0.086469]
[1725374773921,0.3,57840.0,57838.0,0.086469]
[1725374774119,0.42,57840.0,57838.0,0.086469]
[1725374774308,0.42,57840.0,57837.0,0.08615776]
[1725374774515,0.3608,57838.0,57835.0,0.086474]
[1725374774815,0.086475,57834.0,57833.0,0.03144241]
[1725374775121,0.086475,57834.0,57830.0,0.08615776]
[1725374775122,0.35,57834.0,57830.0,0.08615776]
[1725374775311,0.35,57834.0,57828.0,0.086483]
[1725374775312,0.386481,57831.0,57828.0,0.17264076]
[1725374775518,0.716481,57831.0,57828.0,0.17264076]
[1725374775715,0.716481,57831.0,57828.0,0.08615776]
[1725374775916,0.716481,57831.0,57827.0,0.08615776]
[1725374776122,0.716481,57831.0,57830.0,0.086481]
[1725374776419,0.716481,57831.0,57830.0,0.15537298]
[1725374777214,0.63,57831.0,57830.0,0.15537298]
[1725374777530,0.63,57831.0,57830.0,0.086481]
[1725374777712,0.63,57831.0,57828.0,0.06887234]
[1725374777912,0.63,57831.0,57827.0,0.09997448]
[1725374778116,0.086483,57829.0,57827.0,0.06887234]
[1725374778319,0.466483,57829.0,57828.0,0.15535634]
[1725374778516,0.766483,57829.0,57828.0,0.15535634]
[1725374778718,0.766483,57829.0,57828.0,0.086484]
[1725374779319,0.086484,57828.0,57827.0,0.05164677]
[1725374779538,0.086487,57826.0,57825.0,0.05164677]
[1725374779721,0.086489,57825.0,57824.0,0.05163793]
[1725374779921,0.086493,57822.0,57821.0,0.410194]
[1725374780120,0.206493,57822.0,57821.0,0.50956719]
[1725374780615,0.206493,57822.0,57821.0,0.44069485]
[1725374780821,0.206493,57822.0,57821.0,0.09937319]
[1725374781025,0.206493,57822.0,57821.0,0.03050085]
[1725374781026,0.292986,57822.0,57821.0,0.03050085]
[1725374781323,0.292986,57822.0,57820.0,0.00112]
[1725374781324,0.17299,57821.0,57820.0,0.00112]
[1725374781536,0.086499,57818.0,57816.0,0.05162833]
[1725374781729,0.747301,57817.0,57816.0,0.05162833]
[1725374782027,1.117301,57817.0,57816.0,0.086502]
[1725374782224,1.0308,57817.0,57816.0,0.13813033]
[1725374782427,1.0308,57817.0,57812.0,0.03169814]
[1725374782729,0.386507,57813.0,57812.0,0.05159789]
[1725374782926,0.42,57813.0,57810.0,0.13810889]
[1725374783126,0.6608,57811.0,57807.0,0.086515]
[1725374783321,0.6608,57811.0,57803.0,0.06887234]
[1725374783322,0.086518,57806.0,57803.0,0.05159789]
[1725374783516,0.3608,57805.0,57804.0,0.08652]
[1725374783722,0.12,57805.0,57804.0,0.08652]
[1725374783930,0.28,57805.0,57804.0,0.08652]
[1725374784125,0.366519,57805.0,57804.0,0.08652]
[1725374784326,0.366519,57805.0,57800.0,0.13141145]
[1725374784327,0.086521,57804.0,57801.0,0.086524]
[1725374784630,0.3,57802.0,57801.0,0.086524]
[1725374784822,0.42,57802.0,57801.0,0.13812189]
[1725374785132,0.37671365,57802.0,57801.0,0.086524]
[1725374786332,0.37671365,57802.0,57800.0,0.13141145]
[1725374786626,0.086525,57801.0,57800.0,0.13141145]
[1725374786943,0.086525,57801.0,57789.0,0.024]
[1725374786944,1.05904,57801.0,57789.0,0.024]
[1725374787141,0.6608,57790.0,57789.0,0.02]
[1725374787327,1.636461,57790.0,57789.0,0.02]
[1725374787631,0.086561,57777.0,57776.0,0.004]
[1725374787821,1.768161,57777.0,57763.0,0.004]
[1725374788021,1.768161,57777.0,57762.0,0.06094374]
[1725374788022,0.3,57764.0,57762.0,0.06094374]
[1725374788232,0.3,57764.0,57762.0,0.0915803]
[1725374788233,0.086582,57763.0,57762.0,0.0915803]
[1725374788426,0.715942,57763.0,57762.0,0.0915803]
[1725374788630,0.90092,57764.0,57762.0,0.0915803]
[1725374788631,0.00092,57764.0,57762.0,0.0915803]
[1725374788826,0.3,57771.0,57768.0,0.086573]
[1725374789218,0.3,57771.0,57762.0,0.0915803]
[1725374789420,0.3,57763.0,57762.0,0.0915803]
[1725374789628,0.4808,57770.0,57762.0,0.4523803]
[1725374789629,0.3608,57770.0,57762.0,0.4523803]
[1725374789832,0.00025962,57776.0,57773.0,0.086566]
[1725374789833,0.3,57775.0,57773.0,0.086566]
[1725374790224,0.00025962,57776.0,57775.0,0.086564]
[1725374790423,0.00025962,57776.0,57775.0,0.447364]
[1725374790635,0.3,57789.0,57787.0,0.086546]
[1725374791139,0.3,57789.0,57775.0,0.01271626]
[1725374791431,0.3,57789.0,57787.0,0.086545]
[1725374791822,0.42,57789.0,57782.0,0.09535482]
[1725374792022,0.3,57783.0,57782.0,0.08681262]
[1725374792432,0.6608,57790.0,57788.0,0.086543]
[1725374792844,0.3,57790.0,57788.0,0.086543]
[1725374794140,0.3,57790.0,57788.0,0.03189484]
[1725374794141,0.58,57790.0,57788.0,0.03189484]
[1725374794438,0.58,57790.0,57782.0,0.00025962]
[1725374794627,0.3608,57783.0,57782.0,0.00025962]
[1725374794831,0.5708,57783.0,57782.0,0.00025962]
[1725374795238,0.3608,57783.0,57782.0,0.00025962]
[1725374795436,0.3808,57783.0,57782.0,0.00025962]
[1725374796033,0.567352,57783.0,57782.0,0.00025962]
[1725374796340,0.3608,57784.0,57782.0,0.00025962]
[1725374796548,0.7108,57784.0,57782.0,0.00025962]
[1725374796843,0.3258,57783.0,57782.0,0.00025962]
[1725374797035,0.4358,57783.0,57782.0,0.00025962]
[1725374797235,0.6158,57783.0,57782.0,0.00025962]
[1725374797432,0.4358,57783.0,57782.0,0.00025962]
[1725374797640,0.4358,57783.0,57782.0,0.08681262]
[1725374797641,0.11,57783.0,57782.0,0.08681262]
[1725374797846,0.3618,57786.0,57785.0,0.086549]
[1725374798141,0.03,57786.0,57785.0,0.086549]
[1725374798528,0.6908,57786.0,57785.0,0.086549]
[1725374798728,0.33,57786.0,57785.0,0.086549]
[1725374798939,0.33,57786.0,57782.0,0.0313115]
[1725374798940,0.9208,57786.0,57782.0,0.0313115]
[1725374799137,0.3608,57783.0,57782.0,0.0313115]
[1725374799331,1.168152,57783.0,57782.0,0.00025962]
[1725374799531,1.0816,57783.0,57782.0,0.00025962]
[1725374799731,1.0816,57783.0,57782.0,0.08681262]
[1725374799732,0.8416,57783.0,57782.0,0.08681262]
[1725374800041,0.12,57783.0,57782.0,0.08681262]
[1725374801735,0.12,57783.0,57782.0,0.00025962]
[1725374801936,0.426552,57783.0,57782.0,0.00025962]
[1725374802531,0.513104,57783.0,57782.0,0.00025962]
[1725374803235,0.426552,57783.0,57782.0,0.00025962]
[1725374803743,0.513104,57783.0,57782.0,0.00025962]
[1725374803937,1.4592,57783.0,57768.0,0.004]
[1725374804144,1.4592,57783.0,57765.0,0.03141517]
[1725374804145,0.3608,57769.0,57765.0,0.03141517]
[1725374804441,0.3608,57769.0,57762.0,0.06494374]
[1725374804442,0.7008,57769.0,57762.0,0.06094374]
[1725374804646,0.3,57765.0,57764.0,0.08658]
[1725374804844,0.6,57765.0,57764.0,0.08658]
[1725374805245,0.3,57765.0,57764.0,0.08658]
[1725374806043,0.3608,57769.0,57768.0,0.086574]
[1725374806240,0.3608,57769.0,57762.0,0.09253977]
[1725374806241,0.37,57769.0,57765.0,0.086577]
[1725374806442,0.37,57769.0,57762.0,0.09253977]
[1725374806644,0.51,57769.0,57762.0,0.09253977]
[1725374806948,0.21,57769.0,57768.0,0.086574]
[1725374807735,0.00025962,57770.0,57769.0,0.086573]
[1725374808140,0.37025962,57770.0,57765.0,0.086578]
[1725374808337,0.3,57768.0,57765.0,0.13817589]
[1725374808547,0.63,57768.0,57766.0,0.05159789]
[1725374808845,0.21,57768.0,57767.0,0.086576]
[1725374809146,0.34,57768.0,57767.0,0.086576]
[1725374809338,0.34,57768.0,57767.0,0.13809179]
[1725374809540,0.34,57768.0,57765.0,0.03194929]
[1725374809733,0.34,57768.0,57762.0,0.11245953]
[1725374809734,0.386577,57766.0,57762.0,0.11245953]
[1725374809935,0.65,57766.0,57764.0,0.086579]
[1725374810140,0.65,57766.0,57762.0,0.09254684]
[1725374810452,0.086582,57763.0,57762.0,0.09254684]
[1725374810642,0.086582,57763.0,57762.0,0.06094374]
[1725374810643,0.523164,57763.0,57762.0,0.06094374]
[1725374811146,0.436582,57763.0,57762.0,0.06094374]
[1725374811940,0.523164,57763.0,57762.0,0.06094374]
[1725374814144,1.729106,57763.0,57753.0,0.05151579]
[1725374814356,0.086597,57753.0,57745.0,0.0516577]
[1725374814552,0.086597,57753.0,57735.0,0.004]
[1725374814553,0.6608,57746.0,57735.0,0.004]
[1725374814748,0.3608,57736.0,57732.0,0.01586198]
[1725374814947,0.11,57736.0,57735.0,0.086624]
[1725374815145,0.00025962,57740.0,57739.0,0.086618]
[1725374815349,0.36025962,57740.0,57735.0,0.05164512]
[1725374815647,0.36025962,57740.0,57734.0,0.05164512]
[1725374815648,0.44687662,57740.0,57734.0,0.05164512]